bitfinex/quotes_ETHUSD_20220218
["timestamp","ask_amount","ask_price","bid_price","bid_amount"]
[1645143411306,0.00289323,2867.8,2867.5,0.9711127]
[1645143411507,0.00289323,2867.8,2867.6,0.97160906]
[1645143411705,0.00289323,2867.8,2867.7,1.84016913]
[1645143411946,0.00228331,2868.0,2867.7,1.84355906]
[1645143412143,0.00228331,2868.0,2867.8,0.96821913]
[1645143412344,8.331e-05,2868.0,2867.8,0.97160906]
[1645143412543,8.331e-05,2868.0,2867.9,1.22428019]
[1645143412742,8.331e-05,2868.0,2867.9,2.43242913]
[1645143412942,8.331e-05,2868.0,2867.9,22.61242913]
[1645143413543,8.331e-05,2868.0,2867.9,24.83853045]
[1645143413750,0.5,2869.7,2868.3,0.87167]
[1645143413943,0.5,2869.7,2868.4,21.56621913]
[1645143414143,0.5,2869.7,2868.5,0.96821913]
[1645143414346,0.87168,2869.8,2868.5,0.96821913]
[1645143414746,0.49445334,2869.7,2868.5,26.98385367]
[1645143415045,0.87168,2869.8,2868.6,2.25786913]
[1645143415251,0.49447863,2869.7,2868.7,0.96821913]
[1645143415444,0.87168,2869.8,2868.7,1.38621913]
[1645143415445,0.49488365,2869.6,2868.7,1.38621913]
[1645143415706,0.87168,2869.8,2868.7,0.418]
[1645143415904,0.00188973,2869.3,2868.7,0.418]
[1645143416104,0.00188973,2869.3,2868.9,1.05500046]
[1645143416313,0.00188973,2869.3,2868.9,21.23500046]
[1645143416504,0.00188973,2869.3,2869.0,0.418]
[1645143416709,0.495335,2870.0,2869.0,0.418]
[1645143416907,0.495335,2869.9,2869.0,0.418]
[1645143417204,0.00308365,2869.2,2869.0,0.418]
[1645143417404,0.00308365,2869.2,2869.0,1.28956]
[1645143417606,0.00308365,2869.2,2869.0,0.418]
[1645143417904,0.81708327,2870.3,2869.0,0.418]
[1645143417905,0.1741,2870.3,2869.0,0.418]
[1645143418106,0.66969456,2870.3,2869.0,0.418]
[1645143418305,0.00308365,2869.2,2869.0,0.418]
[1645143418708,0.00308365,2869.2,2868.4,3.2132]
[1645143419015,0.00308365,2869.2,2868.5,0.97204473]
[1645143419205,0.49559456,2869.8,2868.2,0.04999999]
[1645143419456,0.00308378,2868.9,2868.2,0.04999999]
[1645143419659,0.87199,2868.8,2868.2,0.04999999]
[1645143419855,0.00308378,2868.9,2868.2,0.04999999]
[1645143420059,0.49343818,2868.9,2868.2,0.04999999]
[1645143420260,0.00308378,2868.9,2868.2,0.04999999]
[1645143420459,3.48795,2869.1,2868.2,0.04999999]
[1645143420460,0.49031811,2869.0,2868.2,0.04999999]
[1645143420659,0.00308388,2868.7,2868.2,0.04999999]
[1645143421060,0.00308388,2868.7,2867.9,0.00338875]
[1645143421264,0.1743,2868.6,2867.7,0.00647375]
[1645143421461,0.49056151,2868.5,2867.7,0.003085]
[1645143421664,0.49056151,2868.5,2867.1,0.01234248]
[1645143421665,0.87221,2868.2,2867.5,0.97320061]
[1645143421864,0.87228,2868.1,2867.7,0.00308484]
[1645143422262,1.74750399,2868.4,2867.7,0.00308484]
[1645143422263,0.00308399,2868.4,2867.7,0.00308484]
[1645143422760,0.4907062,2868.7,2867.7,0.97657643]
[1645143422960,1.3628062,2868.7,2867.8,0.97318768]
[1645143423198,1.3628062,2868.7,2867.9,0.97318768]
[1645143423199,0.00308404,2868.2,2867.9,0.97318768]
[1645143423905,0.49081466,2868.4,2867.3,0.00338875]
[1645143424098,0.49081466,2868.3,2867.3,0.00338875]
[1645143424303,0.49081466,2868.3,2867.7,0.00308467]
[1645143424304,0.00308404,2868.2,2867.7,0.00308467]
[1645143424899,1.74447,2868.1,2867.7,0.00308467]
[1645143425103,2.61675,2868.1,2867.6,0.97367732]
[1645143425299,2.61675,2868.1,2867.6,0.00338875]
[1645143425300,0.49063578,2868.0,2867.6,0.00338875]
[1645143425515,0.49063578,2868.0,2867.7,0.00647336]
[1645143425705,2.61675,2868.1,2867.7,0.00308461]
[1645143425706,2.91675,2868.1,2867.7,0.00308461]
[1645143425903,24.46025419,2868.0,2867.7,8.461e-05]
[1645143426109,0.87253,2867.8,2867.7,8.461e-05]
[1645143426303,0.87253,2867.8,2866.6,0.00338875]
[1645143426304,0.87271,2867.6,2866.6,0.00338875]
[1645143426511,0.87275,2867.3,2866.6,0.97757054]
[1645143426704,0.87275,2867.3,2866.1,0.18294931]
[1645143426705,0.87275,2867.3,2866.7,0.97418179]
[1645143426964,0.87275,2867.3,2866.8,0.97757054]
[1645143427149,0.87275,2867.3,2866.2,0.00338875]
[1645143427150,0.8912575,2866.9,2866.2,0.00338875]
[1645143427351,0.87268,2866.8,2866.2,0.00338875]
[1645143427548,0.87268,2866.8,2866.2,0.97762557]
[1645143427849,0.87268,2866.8,2866.1,0.18294931]
[1645143427850,0.1744,2867.3,2866.3,0.97762557]
[1645143428051,0.1744,2867.5,2866.3,0.00338875]
[1645143428252,1.36954762,2867.4,2866.3,0.00338875]
[1645143428452,1.36954762,2867.4,2866.3,0.97762557]
[1645143428453,0.87265,2867.2,2866.3,0.97762557]
[1645143428653,0.87265,2867.2,2866.4,0.97423682]
[1645143428856,0.97837205,2867.0,2866.5,0.97762557]
[1645143429054,0.97837205,2867.0,2866.6,0.97423682]
[1645143429257,0.1744,2867.3,2866.7,0.98071047]
[1645143429461,0.87242,2867.6,2866.8,0.97423682]
[1645143429462,1.04671,2867.6,2866.8,0.97423682]
[1645143429658,1.34671,2867.6,2866.9,0.97423682]
[1645143429852,1.34671,2867.6,2867.0,0.97762557]
[1645143429853,2.21915,2867.6,2867.0,0.97762557]
[1645143430052,2.21915,2867.6,2866.3,0.00338875]
[1645143430053,2.04485,2867.6,2866.3,0.00338875]
[1645143430253,1.02772815,2867.4,2867.1,0.00308475]
[1645143430600,2.77272815,2867.4,2867.1,0.00308475]
[1645143430805,3.64522815,2867.4,2867.1,0.00308475]
[1645143431105,3.64522815,2867.4,2866.9,0.97002429]
[1645143431307,3.64522815,2867.4,2867.0,0.97002429]
[1645143431503,3.64522815,2867.4,2867.1,0.00308473]
[1645143431705,2.6175,2867.4,2867.1,0.00308473]
[1645143431904,0.87242,2867.6,2867.1,0.00308473]
[1645143432404,0.87242,2867.6,2867.0,0.96971622]
[1645143432603,0.87242,2867.6,2867.2,0.00308469]
[1645143432804,0.87242,2867.6,2867.2,0.97280091]
[1645143432805,1.96371187,2867.6,2867.2,0.97280091]
[1645143433004,1.96371187,2867.6,2867.3,0.00338875]
[1645143433211,1.96371187,2867.6,2867.2,0.00308469]
[1645143433212,2.23865248,2867.5,2867.2,0.00308469]
[1645143433404,3.49012,2867.5,2867.2,0.00308469]
[1645143433607,3.49012,2867.5,2866.2,0.00338875]
[1645143433805,1.96371187,2867.6,2866.2,0.00338875]
[1645143433806,1.96371187,2867.6,2867.2,0.00308469]
[1645143434342,0.1743,2867.7,2867.2,0.00308469]
[1645143434543,0.08819997,2867.8,2867.2,0.00308469]
[1645143434751,0.08819997,2867.8,2867.1,0.96935068]
[1645143435045,0.08819997,2867.8,2867.2,0.00338875]
[1645143435244,1.13032133,2867.7,2867.3,0.00308465]
[1645143435447,0.87242,2867.6,2867.3,0.00308465]
[1645143436048,0.87242,2867.6,2866.6,0.00338875]
[1645143436049,0.49392384,2867.5,2866.6,0.00338875]
[1645143436250,0.49392384,2867.5,2866.1,0.18294931]
[1645143436251,0.49392384,2867.5,2867.3,0.00308465]
[1645143436448,1.74515,2867.4,2867.3,0.00308465]
[1645143436851,3.9842729,2867.4,2867.3,0.00308465]
[1645143437051,1.74515,2867.5,2867.3,0.00308465]
[1645143437254,1.91929,2867.6,2866.2,0.00338875]
[1645143437255,1.18579641,2867.1,2866.2,0.17768875]
[1645143437452,1.18579641,2867.1,2866.8,0.01234061]
[1645143437651,1.18579641,2867.1,2866.9,0.96968015]
[1645143437853,1.74514,2867.4,2866.9,0.9730689]
[1645143438096,0.87256,2867.1,2866.9,0.00338875]
[1645143438296,1.74513,2867.1,2866.8,0.01234061]
[1645143438496,1.74513,2867.1,2866.2,0.00338875]
[1645143438699,1.74513,2867.1,2867.0,0.00308477]
[1645143438896,1.74513,2867.1,2867.0,0.0009753]
[1645143439097,0.87257,2867.1,2867.0,0.0009753]
[1645143439702,0.87247,2867.3,2866.7,0.96936802]
[1645143439904,1.5683,2868.1,2866.8,0.97275677]
[1645143439905,2.00734997,2867.8,2866.8,0.97275677]
[1645143440100,1.74493,2867.7,2866.9,0.96936802]
[1645143440300,0.88758622,2867.6,2867.0,0.96936802]
[1645143440500,2.63239622,2867.6,2866.5,0.97275677]
[1645143440703,2.63239622,2867.6,2866.6,0.96936802]
[1645143440904,1.75999622,2867.6,2866.7,0.97275677]
[1645143441102,1.75999622,2867.6,2866.2,0.1743]
[1645143441103,1.75999622,2867.6,2866.9,0.00119477]
[1645143441503,0.87255,2867.4,2866.9,0.00119477]
[1645143441943,0.87255,2867.4,2866.8,0.96936802]
[1645143442144,0.87259,2867.1,2866.9,0.96936802]
[1645143442348,0.87259,2867.1,2866.9,0.00119477]
[1645143443145,0.87259,2867.1,2866.2,0.00338875]
[1645143443347,0.87259,2867.1,2866.2,0.97237407]
[1645143443348,1.74518,2867.1,2866.2,0.97237407]
[1645143443547,2.61776,2867.1,2866.9,0.00308484]
[1645143444050,3.61612172,2867.1,2866.9,0.00308484]
[1645143444247,2.61776,2867.1,2866.9,0.00308484]
[1645143444447,0.87259,2867.1,2866.7,0.96898532]
[1645143444647,1.74491,2867.3,2866.9,0.00308484]
[1645143445053,0.1743,2867.7,2866.9,0.00308484]
[1645143445249,0.0030838,2867.8,2866.9,0.00308484]
[1645143445449,0.0030838,2867.8,2866.9,1.84431016]
[1645143445708,0.0030838,2867.8,2866.8,0.95582964]
[1645143445709,0.87224,2868.0,2867.0,0.96898532]
[1645143446005,0.00308403,2867.8,2867.1,0.96898532]
[1645143446308,0.00308403,2867.8,2867.6,0.90025978]
[1645143446505,0.00308403,2867.8,2867.7,1.01898531]
[1645143446906,0.8714,2868.6,2867.7,1.01898531]
[1645143447104,1.706,2868.9,2867.8,0.96898532]
[1645143447304,0.49371991,2868.8,2867.8,0.96898532]
[1645143447712,0.88608437,2868.9,2867.8,0.96898532]
[1645143447905,1.75807437,2868.9,2867.8,0.96898532]
[1645143448106,3.50205437,2868.9,2867.8,0.96898532]
[1645143448305,0.00308399,2868.4,2867.8,0.96898532]
[1645143448709,0.00308399,2868.4,2867.8,4.97597061]
[1645143448906,0.00308399,2868.4,2867.9,0.96898532]
[1645143449105,0.00308399,2868.4,2868.0,0.96898532]
[1645143449345,0.50693425,2869.0,2868.1,0.96898532]
[1645143449547,0.00308407,2868.2,2868.1,0.91894351]
[1645143449946,0.00308407,2868.2,2868.1,1.8726205]
[1645143450351,1.38700858,2869.0,2868.1,1.8726205]
[1645143450547,1.38700858,2869.0,2867.8,4.39792227]
[1645143450548,0.50797619,2868.9,2867.8,0.418]
[1645143450751,0.50797619,2868.9,2867.9,0.95353205]
[1645143450752,0.00308405,2868.3,2867.9,0.95353205]
[1645143450950,0.00308405,2868.3,2867.2,0.1743]
[1645143451152,0.00308405,2868.3,2867.3,0.95368254]
[1645143451153,0.1743,2868.2,2867.3,0.95368254]
[1645143451352,0.51106024,2868.3,2867.4,0.95368254]
[1645143451353,0.00308405,2868.3,2867.4,0.95368254]
[1645143451553,0.96275687,2868.6,2867.5,1.90970377]
[1645143451752,0.1743,2868.9,2867.6,0.95368254]
[1645143451950,0.00308422,2867.9,2867.7,0.95368254]
[1645143452151,0.00308422,2867.9,2867.8,0.95368254]
[1645143452855,0.51541193,2868.9,2867.8,0.95368254]
[1645143453098,0.00308417,2868.0,2867.9,0.95368254]
[1645143453297,0.00308417,2868.0,2867.9,3.11542254]
[1645143453705,0.00308417,2868.0,2867.9,0.95368254]
[1645143454100,0.51545693,2869.0,2867.9,0.95368254]
[1645143454302,0.87202,2868.9,2868.0,1.83503204]
[1645143454501,1.74395,2869.3,2868.0,1.83503204]
[1645143454502,0.1743,2869.4,2868.1,0.95368254]
[1645143454702,1.38735165,2869.3,2868.2,0.95368254]
[1645143454904,0.1743,2869.4,2868.3,0.94562679]
[1645143454905,0.51555165,2869.2,2868.3,0.94562679]
[1645143455100,0.51555165,2869.1,2868.0,0.8813495]
[1645143455302,0.4743,2869.4,2868.1,0.94563729]
[1645143455507,0.00286114,2868.9,2868.1,0.94563729]
[1645143455709,0.00286114,2868.9,2868.5,1.0991599]
[1645143456007,0.00286114,2868.9,2868.3,0.87183]
[1645143456212,0.00286114,2868.9,2868.4,0.93993326]
[1645143456407,0.4743,2869.4,2868.4,0.93993326]
[1645143456607,0.4743,2869.4,2867.9,1.74373]
[1645143456608,0.52428563,2869.3,2868.0,0.93993326]
[1645143456851,0.52428563,2869.3,2868.1,0.9362681]
[1645143456852,0.00286121,2868.7,2868.1,0.9362681]
[1645143457053,0.00286121,2868.7,2867.9,21.92373]
[1645143457054,0.00286121,2868.7,2868.2,0.9362681]
[1645143457251,0.00286121,2868.7,2868.3,21.1162681]
[1645143457455,0.00286121,2868.7,2868.5,20.18]
[1645143457654,0.034,2870.0,2868.7,20.18]
[1645143457855,0.034,2870.0,2868.8,1.3542681]
[1645143458059,1.14298327,2870.5,2868.9,46.35721948]
[1645143458060,0.5,2870.5,2868.9,46.35721948]
[1645143458252,0.53896244,2870.4,2869.3,20.18]
[1645143458457,0.64298327,2871.1,2869.6,24.48]
[1645143458652,0.64298327,2871.5,2870.1,20.18]
[1645143458854,1.06264723,2871.8,2870.0,5.0]
[1645143458855,1.51498327,2871.6,2870.3,20.18]
[1645143459053,1.51498327,2871.6,2870.6,5.0]
[1645143459253,0.64298327,2871.9,2871.3,21.05068]
[1645143459555,0.5,2871.8,2871.4,19.01488222]
[1645143459754,0.5,2871.8,2871.4,19.43288222]
[1645143459953,0.64298327,2872.5,2871.8,1.00374731]
[1645143460156,0.64298327,2872.6,2871.8,1.00374731]
[1645143460359,0.0067335,2872.2,2872.0,19.01488222]
[1645143460601,0.64298327,2873.4,2872.2,4.3]
[1645143460803,0.64298327,2873.4,2872.0,5.0]
[1645143460804,0.5,2873.3,2872.3,0.418]
[1645143461101,3.5,2873.2,2872.0,1.74071]
[1645143461303,3.5,2873.2,2871.6,4.14894]
[1645143461304,0.1739,2873.2,2871.9,0.87046]
[1645143461502,4.14298327,2873.5,2871.9,1.74092]
[1645143461700,1.00302434,2873.4,2872.2,0.9298176]
[1645143461900,0.64298327,2873.6,2872.2,0.9298176]
[1645143462501,3.5,2873.5,2871.6,0.418]
[1645143462706,3.5,2873.5,2871.3,0.04999999]
[1645143462707,5.0,2873.1,2871.3,0.04999999]
[1645143462902,7.21301,2873.0,2871.3,0.04999999]
[1645143463110,3.71301,2873.0,2871.3,0.04999999]
[1645143463502,1.84731409,2872.3,2871.3,0.04999999]
[1645143463702,2.71836409,2872.3,2871.3,0.04999999]
[1645143463900,2.72025342,2872.3,2871.3,0.04999999]
[1645143464103,0.00188933,2872.3,2871.3,0.04999999]
[1645143464848,0.1741,2872.3,2871.3,0.04999999]
[1645143465147,0.17718432,2872.3,2871.3,0.04999999]
[1645143465347,0.94455707,2872.1,2871.3,0.04999999]
[1645143465550,0.1741,2872.0,2870.3,0.1741]
[1645143465758,0.87122,2871.6,2870.2,0.00308667]
[1645143465955,1.784,2871.5,2870.2,0.00308667]
[1645143466152,0.1741,2872.0,2869.9,4.29775229]
[1645143466354,1.784,2871.9,2870.2,0.00308624]
[1645143466553,1.784,2871.9,2870.7,1.00940473]
[1645143468406,1.784,2871.9,2870.7,1.88029473]
[1645143468603,1.784,2871.9,2870.7,1.00940473]
[1645143469205,1.784,2871.9,2871.2,1.15793028]
[1645143469402,0.00308399,2872.3,2871.2,1.15793028]
[1645143469603,0.1741,2872.4,2871.2,1.15793028]
[1645143470005,0.00308415,2872.3,2871.2,1.15793028]
[1645143470203,0.12718415,2872.2,2871.2,1.15793028]
[1645143470402,0.87105,2872.2,2871.2,1.15793028]
[1645143470604,0.1741,2872.1,2870.6,0.418]
[1645143470809,3.82431389,2872.1,2870.4,0.1741]
[1645143471012,3.82431389,2872.1,2870.1,0.01261097]
[1645143471013,1.04521,2872.0,2870.1,0.01261097]
[1645143471209,4.28993256,2871.9,2870.1,20.19261097]
[1645143471852,3.88065642,2871.9,2870.1,20.19261097]
[1645143472055,3.58065642,2871.9,2870.1,20.19261097]
[1645143472252,3.88065642,2871.9,2870.1,20.19261097]
[1645143472453,1.15177191,2871.7,2870.6,1.17987586]
[1645143472653,0.1741,2871.8,2870.6,1.17987586]
[1645143472853,0.1741,2871.8,2870.1,21.06369097]
[1645143473254,0.1741,2871.9,2870.1,21.06369097]
[1645143473455,0.1741,2871.9,2870.2,21.18]
[1645143473660,0.4741,2872.1,2870.8,0.00308541]
[1645143473856,0.1741,2872.1,2870.8,0.00308541]
[1645143474055,1.1665671,2872.0,2870.8,1.1959637]
[1645143474355,1.4366,2872.2,2870.8,1.1959637]
[1645143474356,1.1366,2872.2,2870.8,1.1959637]
[1645143474555,1.1366,2872.2,2870.8,1.19287829]
[1645143474756,0.17718395,2872.4,2871.3,0.00308522]
[1645143474958,0.00308395,2872.4,2871.3,0.00308522]
[1645143475155,0.00308395,2872.4,2871.3,20.18308522]
[1645143475354,0.00308395,2872.4,2871.9,1.08336529]
[1645143475629,0.5,2872.8,2871.9,1.77306529]
[1645143475833,3.0081,2873.2,2872.0,0.418]
[1645143476036,0.00308444,2872.4,2872.0,0.418]
[1645143476634,0.00308444,2872.4,2872.1,46.25265924]
[1645143476635,8.444e-05,2872.4,2872.1,46.25265924]
[1645143476835,8.444e-05,2872.4,2872.2,21.7719]
[1645143477034,1.31549997,2873.9,2872.2,21.7719]
[1645143477232,1.31549997,2873.9,2872.3,4.5889219]
[1645143477431,1.31549997,2873.9,2872.4,20.7719]
[1645143477634,0.00506204,2874.1,2872.6,25.18]
[1645143477834,1.8018,2874.5,2872.6,25.18]
[1645143477835,0.00506204,2874.3,2872.9,0.87017]
[1645143478033,0.00506204,2874.3,2873.0,0.418]
[1645143478233,0.00506204,2874.3,2873.5,1.0486877]
[1645143479448,1.72411447,2874.6,2873.4,1.18199141]
[1645143479654,0.00506204,2874.5,2873.4,1.1212]
[1645143480451,0.87031,2874.3,2873.4,1.1212]
[1645143480653,0.87031,2874.4,2872.5,0.1739]
[1645143480654,1.07719096,2873.6,2872.5,0.1739]
[1645143481053,1.07719096,2873.6,2872.3,0.2062]
[1645143481458,0.87059,2873.5,2872.3,0.2062]
[1645143481653,0.87069,2873.2,2872.3,0.2062]
[1645143482052,0.00308426,2873.1,2872.1,0.05308529]
[1645143482256,0.17698426,2873.1,2872.1,0.0030853]
[1645143482456,1.74181,2872.8,2872.1,0.0030853]
[1645143482656,0.87098,2872.6,2872.1,0.0030853]
[1645143482854,1.04494,2872.5,2870.6,0.1739]
[1645143483100,0.85985707,2871.8,2870.6,1.28799326]
[1645143483301,0.85985707,2871.8,2870.6,0.1739]
[1645143483503,0.1741,2871.7,2870.5,0.04999999]
[1645143483706,0.87118,2871.4,2870.5,0.04999999]
[1645143484503,0.87118,2871.4,2870.8,0.00308541]
[1645143484504,1.74238,2871.4,2870.8,0.00308541]
[1645143484705,0.8453122,2871.3,2870.8,0.00308541]
[1645143485205,1.34518,2871.7,2870.8,0.00308541]
[1645143485503,1.34518,2871.7,2870.5,0.04999999]
[1645143485504,1.04518,2871.7,2870.5,0.04999999]
[1645143485709,0.87108,2871.7,2870.9,0.00308537]
[1645143485909,0.8711,2871.6,2870.9,0.00308537]
[1645143486110,0.84386918,2871.4,2870.9,0.00308537]
[1645143486507,0.84386918,2871.4,2870.5,0.04999999]
[1645143486951,0.84386918,2871.4,2871.0,0.00308533]
[1645143487157,0.84386918,2871.4,2871.2,0.5]
[1645143487158,1.74256,2871.3,2871.2,0.5]
[1645143487349,1.74256,2871.3,2871.0,0.00308533]
[1645143487350,1.91666,2871.3,2871.0,8.533e-05]
[1645143487552,8.63466,2871.3,2871.0,8.533e-05]
[1645143487756,0.87159,2870.8,2869.8,0.1741]
[1645143487950,0.87159,2870.8,2869.1,5.169]
[1645143487951,0.1741,2870.7,2869.1,5.169]
[1645143488155,0.87169,2870.3,2869.1,5.169]
[1645143488355,1.05413893,2869.9,2869.1,5.169]
[1645143488750,2.78915,2870.5,2869.1,5.169]
[1645143488751,0.87171,2869.8,2869.1,5.169]
[1645143488952,3.20712,2870.6,2869.1,5.169]
[1645143488953,0.5921,2870.6,2869.1,5.169]
[1645143489150,0.4741,2870.5,2869.1,5.169]
[1645143489355,0.1741,2870.5,2869.1,5.169]
[1645143489752,0.8716,2870.1,2869.1,5.169]
[1645143489952,0.8716,2870.1,2869.1,6.16528541]
[1645143490151,1.1716,2870.1,2869.1,6.16528541]
[1645143490351,1.1716,2870.1,2869.5,0.00308598]
[1645143491514,1.1716,2870.1,2869.1,5.169]
[1645143491708,2.0432,2870.1,2869.7,0.00308589]
[1645143491912,2.91477,2870.1,2869.7,0.00308589]
[1645143492510,2.91477,2870.1,2869.1,5.169]
[1645143492711,0.87163,2869.9,2869.1,5.169]
[1645143492908,0.87163,2869.9,2869.8,0.00308585]
[1645143493109,1.17157,2870.1,2869.8,0.00308585]
[1645143493312,0.3,2869.9,2869.8,0.00308585]
[1645143493516,0.4741,2869.9,2869.8,0.00308585]
[1645143493814,0.4741,2869.9,2868.4,12.51899999]
[1645143493815,0.87176,2869.6,2868.4,5.21899999]
[1645143494013,1.74352,2869.6,2868.4,5.169]
[1645143494210,0.1741,2869.5,2869.3,0.01234534]
[1645143494462,0.87183,2869.4,2869.3,0.01234534]
[1645143494653,1.04593,2869.4,2869.3,0.01234534]
[1645143495054,1.14130755,2868.7,2868.0,0.1]
[1645143495455,1.7441,2869.2,2868.0,0.1]
[1645143496058,1.74408,2868.8,2868.0,0.1]
[1645143496258,0.87203,2868.6,2868.0,0.1]
[1645143496457,0.87203,2868.6,2868.5,0.0011093]
[1645143496862,1.74406,2869.0,2868.5,0.0011093]
[1645143496863,3.0339,2869.8,2868.5,0.0011093]
[1645143497062,0.1741,2869.4,2868.5,0.0011093]
[1645143497263,0.87187,2869.2,2868.0,0.1]
[1645143497458,0.1741,2869.6,2868.0,0.1]
[1645143497661,2.2749,2869.7,2868.7,0.00299148]
[1645143497858,1.7933,2869.9,2868.7,20.18299148]
[1645143498105,1.7933,2869.9,2868.9,20.18]
[1645143498302,1.7933,2869.9,2869.0,0.418]
[1645143498501,1.7933,2869.9,2869.0,1.32006106]
[1645143498701,0.5,2870.1,2869.1,0.9701017]
[1645143499006,0.1741,2870.5,2869.3,0.00300898]
[1645143499007,1.991,2870.5,2869.3,0.00300898]
[1645143499203,1.8169,2871.0,2869.4,20.898]
[1645143499404,1.8169,2871.0,2869.5,21.18]
[1645143499705,1.8169,2871.0,2869.6,4.54378247]
[1645143499901,1.8169,2871.0,2869.6,5.71501247]
[1645143500102,0.87129,2870.9,2869.7,0.00300912]
[1645143500507,0.47328997,2870.8,2869.7,0.00300912]
[1645143500708,0.64738997,2870.8,2869.7,0.00300912]
[1645143500910,1.12145032,2870.5,2869.7,0.00300912]
[1645143501107,1.12145032,2870.5,2869.2,1.52287372]
[1645143501308,1.12145032,2870.5,2869.7,0.00300912]
[1645143501509,0.1741,2870.9,2869.7,0.00300912]
[1645143501708,0.1741,2871.3,2869.7,0.00300912]
[1645143501946,0.47351929,2870.9,2869.7,0.00300912]
[1645143502147,0.47351929,2870.9,2869.3,0.3]
[1645143502350,1.74274,2870.8,2869.2,0.79976106]
[1645143502550,1.74274,2870.8,2869.7,0.00294367]
[1645143502551,2.04721854,2870.6,2869.7,0.00294367]
[1645143503048,0.87141,2870.6,2869.7,0.00294367]
[1645143503448,0.87141,2870.6,2869.4,0.84719069]
[1645143503649,1.74286,2870.8,2869.4,0.84719069]
[1645143503851,1.74286,2870.8,2869.7,0.00294354]
[1645143504051,1.44220744,2870.7,2869.7,0.00294354]
[1645143504453,1.74341,2870.5,2869.7,0.0010036]
[1645143504652,1.74341,2870.5,2868.7,7.3]
[1645143504653,0.87171,2870.2,2868.7,7.3]
[1645143504856,0.87171,2870.2,2869.7,0.00294357]
[1645143505253,0.87171,2870.2,2868.5,4.95300757]
[1645143505254,1.14519018,2869.5,2868.5,4.95300757]
[1645143505455,1.14519018,2869.5,2868.5,0.1742]
[1645143505705,1.14519018,2869.5,2868.2,7.3]
[1645143505706,0.87189,2869.1,2868.2,7.3]
[1645143506504,1.74378,2869.4,2868.2,7.3]
[1645143506705,0.87184,2869.1,2868.3,0.98170849]
[1645143507106,2.61557,2869.3,2868.1,0.3]
[1645143507305,2.61557,2869.3,2868.0,0.4]
[1645143507510,2.61557,2869.3,2868.1,0.98168282]
[1645143507905,2.61557,2869.3,2868.1,1.28168282]
[1645143508106,2.61557,2869.3,2868.1,0.3]
[1645143508306,0.97506424,2869.0,2868.0,0.1]
[1645143508505,1.91814,2869.1,2868.0,0.1]
[1645143508705,1.74384,2869.1,2868.0,0.1]
[1645143508904,1.74384,2869.1,2868.1,0.98108896]
[1645143509106,1.74384,2869.1,2868.0,0.1]
[1645143509570,0.1743,2869.2,2868.5,0.00308334]
[1645143509571,0.97494582,2869.0,2868.5,0.00308334]
[1645143509772,0.87184,2869.2,2868.5,0.00308334]
[1645143510580,0.87187,2869.1,2868.0,0.1]
[1645143510783,0.1743,2869.0,2868.7,0.00308323]
[1645143510979,0.872,2868.9,2868.7,0.00308323]
[1645143511378,1.172,2868.9,2868.7,0.00308323]
[1645143511778,0.98424131,2868.8,2868.0,0.1]
[1645143511979,0.87214,2868.6,2868.0,0.1]
[1645143512177,0.8968209,2868.3,2868.0,0.1]
[1645143512476,1.74428,2868.6,2868.0,0.1]
[1645143512685,0.1743,2869.0,2868.0,0.1]
[1645143512883,0.1743,2869.3,2868.0,0.1]
[1645143513100,0.87181,2869.2,2868.0,0.1]
[1645143513300,0.1743,2869.1,2868.0,0.1]
[1645143513602,0.1743,2869.2,2868.2,21.13728922]
[1645143513801,0.9517454,2869.4,2868.5,0.87161]
[1645143514000,0.9517454,2869.4,2868.0,0.1]
[1645143514204,0.1741,2869.3,2868.0,0.1]
[1645143514401,1.04592,2869.3,2868.0,0.1]
[1645143514605,1.04592,2869.3,2868.8,0.00307245]
[1645143514804,1.34592,2869.3,2868.8,0.00307245]
[1645143515208,1.04592,2869.3,2868.8,0.00307245]
[1645143515408,1.03867303,2868.9,2868.0,0.1]
[1645143515607,1.03867303,2868.9,2868.5,0.01147858]
[1645143516210,1.33867303,2868.9,2868.5,0.01147858]
[1645143516411,2.21062303,2868.9,2868.5,0.01147858]
[1645143516608,2.21062303,2868.9,2868.0,0.1]
[1645143516847,0.87212,2868.4,2868.1,0.01147905]
[1645143517150,0.1743,2869.0,2868.1,0.01147905]
[1645143517353,0.4743,2869.3,2868.1,0.01147905]
[1645143517547,0.87202,2868.6,2868.1,0.01147905]
[1645143517750,0.87202,2868.6,2868.0,0.1]
[1645143517945,1.0674716,2868.4,2868.0,0.1]
[1645143518145,1.0674716,2868.4,2868.1,0.01147905]
[1645143518949,1.0674716,2868.4,2868.0,0.1]
[1645143519351,1.0674716,2868.4,2868.1,0.00286949]
[1645143520258,1.9395216,2868.4,2868.0,0.1]
[1645143520455,1.9395216,2868.4,2868.1,0.00288536]
[1645143521110,1.0674716,2868.4,2868.1,0.00288536]
[1645143521514,1.0674716,2868.4,2868.0,0.1]
[1645143521710,1.0674716,2868.4,2868.1,0.00288536]
[1645143522711,1.0674716,2868.4,2868.0,0.1]
[1645143522915,1.0674716,2868.4,2868.1,0.00288536]
[1645143523314,3.6626,2868.7,2868.1,0.00288536]
[1645143523521,4.88125327,2869.8,2868.1,0.00288536]
[1645143523522,0.17718391,2869.6,2868.2,4.73023026]
[1645143523715,0.17718391,2869.6,2868.6,0.0120399]
[1645143523716,0.00288391,2869.6,2868.6,0.0120399]
[1645143523922,2.334,2869.8,2868.7,0.418]
[1645143524115,0.1741,2870.4,2868.7,0.5921]
[1645143524358,1.35384996,2870.3,2868.8,20.26176106]
[1645143524563,1.15578177,2869.9,2868.9,0.418]
[1645143524957,0.48219508,2869.8,2868.9,0.418]
[1645143525157,1.15578177,2869.9,2868.9,0.418]
[1645143525462,0.00189887,2869.6,2868.9,0.418]
[1645143525665,0.99992312,2869.3,2869.0,0.87163]
[1645143525862,0.00189887,2869.6,2869.0,0.87163]
[1645143526264,0.48519011,2870.0,2869.0,0.87163]
[1645143526461,0.0018988,2869.6,2869.0,0.87163]
[1645143526664,0.16923814,2868.9,2868.4,1.74344]
[1645143526863,0.16923814,2868.9,2868.6,0.87175]
[1645143527467,0.16923814,2868.9,2868.4,1.74344]
[1645143527468,1.10563448,2868.7,2868.4,1.74344]
[1645143527668,0.16923814,2868.9,2868.6,0.00307461]
[1645143528708,1.12675002,2868.8,2868.1,1.28989]